[Event "British Championship 2024"]
[Site "Hull"]
[Date "2024.07.31"]
[Round "4.10"]
[White "Merry, Alan B"]
[Black "Golding, Alex"]
[Result "0-1"]
[Annotator "TA"]
[ECO "E11"]
[WhiteElo "2429"]
[BlackElo "2296"]
[PlyCount "128"]
[EventDate "2024.07.31"]
[EventCountry "GBR"]
[SourceTitle "playchess.com"]
[Source "ChessBase"]
[SourceQuality "1"]
[TimeControl "40/5400+30:1800+30"]

{[%evp 26,128,50,47,84,85,77,79,75,62,71,49,71,51,107,102,102,107,133,104,113,105,97,87,99,99,119,110,108,108,113,112,137,117,138,106,164,105,177,157,167,136,142,148,137,141,161,156,185,177,175,175,212,179,197,73,73,73,77,79,81,0,57,0,50,5,66,40,22,4,9,0,73,0,73,78,91,71,72,85,93,93,93,93,93,91,102,76,95,81,88,82,68,82,176,33,72,2,41,2,2,7,7,-29976,-29977]} 1. d4 {[%emt 0:00:02]} Nf6 {[%emt 0:00:24]} 2. c4 {[%emt 0:00:03]} e6 {[%emt 0:00:23]} 3. g3 {[%emt 0:00:04]} Bb4+ {[%emt 0:01:24]} 4. Bd2 {[%emt 0:00:05]} Be7 {[%emt 0:00:13]} 5. Bg2 {[%emt 0:00:04]} d5 {[%emt 0:00:07]} 6. Nf3 {[%emt 0:00:05]} O-O {[%emt 0:02:10]} 7. O-O {[%emt 0:00:03]} Nbd7 {[%emt 0:02:56]} 8. Qc2 {[%emt 0:00:19]} c6 {[%emt 0:03:56]} 9. Rd1 {[%emt 0:01:16]} Ne4 {[%emt 0:07:15]} 10. Bf4 {[%emt 0:01:46] E11: Bogo-Indian.} g5 $1 {[%emt 0:01:20] 10...g5 scores better than 10...f5.} 11. Bc1 {[%emt 0:00:05]} f5 {[%emt 0:01:24]} 12. Nc3 {[%emt 0:00:07]} g4 {[%emt 0:04:22]} 13. Ne1 {[%emt 0:00:26]} Qe8 $146 {[%emt 0:07:10]} ({Predecessor:} 13... Ndf6 14. Nd3 Nh5 15. Nxe4 fxe4 16. Ne5 Nf6 17. Bh6 Re8 18. Qd2 Nd7 19. Qf4 Nxe5 20. dxe5 {1-0 Goncalves,D (2201)-Boabaid,J (1889) Blumenau Ann 100 op 2016 (2)}) 14. Bf4 {[%emt 0:09:56]} Ndf6 {[%emt 0:09:36]} 15. Bh6 {[%emt 0:05:58]} Rf7 {[%emt 0:00:10]} 16. Nd3 {[%emt 0:00:28]} Bf8 {[%emt 0:00:40]} 17. Bxf8 {[%emt 0:08:10]} Rxf8 {[%emt 0:00:08]} 18. b4 {[%emt 0:11:21]} Bd7 {[%emt 0:01:15]} 19. Ne5 {[%emt 0:04:29]} (19. Nxe4 {simplifies} fxe4 20. Ne5 Qe7 21. a4) 19... Qh5 {[%emt 0:01:39]} ({Black should play} 19... Nd6 $14) 20. e3 $16 {[%emt 0:03:00]} Rfc8 {[%emt 0:06:15]} 21. Ne2 {[%emt 0:03:28]} Qe8 {[%emt 0:01:11]} 22. Rdb1 {[%emt 0:05:31]} Qe7 {[%emt 0:04:46]} 23. a4 {[%emt 0:02:07]} Be8 {[%emt 0:00:11]} 24. Rb2 {[%emt 0:04:12]} h5 {[%emt 0:00:50]} 25. Nf4 {[%emt 0:03:36]} h4 {[%emt 0:00:59]} 26. Neg6 {[%emt 0:20:04]} Bxg6 {[%emt 0:00:07]} 27. Nxg6 {[%emt 0:00:04]} Qf7 {[%emt 0:00:29]} 28. Nxh4 {[%emt 0:00:27]} Kg7 {[%emt 0:01:50]} 29. Rc1 {[%emt 0:02:07]} Nd6 {[%emt 0:01:55]} 30. Bf1 {[%emt 0:02:38]} Nh7 {[%emt 0:03:02]} (30... dxc4 $16 31. Bxc4 Qd7) 31. Qd1 {[%emt 0:05:26]} ({Better is} 31. c5 $18 Ne4 32. b5) 31... a5 {[%emt 0:07:01]} (31... dxc4 $16 32. Bxc4 Nxc4 33. Rxc4 Ng5) 32. h3 {[%emt 0:05:14]} gxh3 {[%emt 0:00:29]} 33. c5 {[%emt 0:01:02]} (33. Bxh3 $6 Nxc4 34. Rbb1 Ng5 $11) 33... Ne4 {[%emt 0:00:07]} 34. Bxh3 {[%emt 0:00:22]} axb4 {[%emt 0:00:24]} 35. Rxb4 {[%emt 0:00:25]} Nhg5 {[%emt 0:01:29]} 36. Bg2 {[%emt 0:00:36]} Rh8 {[%emt 0:00:51]} 37. Rc2 {[%emt 0:01:32]} Ra7 {[%emt 0:00:15]} 38. Rcb2 {[%emt 0:00:40]} Qc7 {[%emt 0:03:23]} 39. Qe1 {[%emt 0:01:38]} Nf6 {[%emt 0:01:14]} 40. Nf3 {[%emt 0:00:54]} (40. Qb1 $18 {has better winning chances.} Rb8 41. Rb6) 40... Nxf3+ $16 {[%emt 0:01:22]} 41. Bxf3 {[%emt 0:30:04]} Kg6 {[%emt 0:30:17]} 42. Bg2 {[%emt 0:00:00]} Qh7 {[%emt 0:00:00]} 43. Qe2 {[%emt 0:00:00]} (43. Kf1 $1 $16) 43... Qh2+ $11 {[%emt 0:00:00]} 44. Kf1 {[%emt 0:00:00]} Rha8 {[%emt 0:00:00]} (44... Ne4 $11) 45. Qc2 {[%emt 0:00:00]} (45. Rxb7 Rxa4 46. Rb1 Ne4 $11) 45... Qh5 {[%emt 0:00:00]} (45... Ne4 $11) 46. Ra2 {[%emt 0:00:00]} (46. Rxb7 Rxa4 47. Rb1 Ng4 $11) (46. Kg1 {keeps more tension.} Ng4 47. Ra2 Qh2+ 48. Kf1) 46... Ne4 {[%emt 0:00:00]} 47. Ke1 {[%emt 0:00:57]} Qh2 {[%emt 0:00:00]} 48. Kf1 {[%emt 0:00:54]} Ng5 {[%emt 0:00:00]} (48... Qh5 $11 {keeps the balance.}) 49. g4 {[%emt 0:02:12]} (49. Rbb2 $16) 49... Nh3 {[%emt 0:00:00]} (49... Rh8 $11) 50. gxf5+ $16 {[%emt 0:00:18]} exf5 {[%emt 0:00:00]} 51. Bxh3 {[%emt 0:00:24]} Qxh3+ {[%emt 0:00:00]} 52. Ke2 {[%emt 0:00:52]} Rh8 {[%emt 0:00:00]} 53. Ra1 {[%emt 0:00:43]} Qg4+ {[%emt 0:00:00]} 54. Kd2 {[%emt 0:00:39]} Kf6 {[%emt 0:00:00]} 55. Kc3 {[%emt 0:00:28]} f4 {[%emt 0:00:00]} 56. Re1 {[%emt 0:00:32]} (56. Rbb1 {is interesting.} Rh3 57. Rg1 Qf5 58. Qb2) 56... Rh3 {[%emt 0:00:00]} 57. Kb2 {[%emt 0:00:23]} fxe3 {[%emt 0:00:00]} 58. Rxe3 {[%emt 0:00:36]} Rxe3 {[%emt 0:00:00]} 59. fxe3 {[%emt 0:00:03]} Qf3 {[%emt 0:00:00] [#]} (59... Ke6 $16) 60. Qc3 {[%emt 0:00:59]} (60. Ka3 $1 $18) 60... Qd1 {[%emt 0:00:00] [#]} 61. Ka3 {[%emt 0:00:32]} (61. Qc1 $1 $16 {[%cal Rc1d1]} Qe2+ 62. Kc3) 61... Kf5 {[%emt 0:00:00]} 62. Rb3 {[%emt 0:00:31]} Ke6 {[%emt 0:00:00]} 63. Qb2 {[%emt 0:00:29]} Qf1 {[%emt 0:00:00]} 64. Qc2 $2 {[%emt 0:00:31][%mdl 8192]} (64. Rxb7 Rxb7 65. Qxb7 Qa1+ 66. Kb3 Qb1+ 67. Kc3 Qxb7 68. Kc2 Kf5 (68... Qh7+ {is a self mate.} 69. Kd2 Qb1 70. Kc3 Kf5 71. Kd2 Ke4 72. Kc3 Kxe3 73. a5 Qc1+ 74. Kb3 Kxd4 75. a6 Qb1+ 76. Ka3 Kc3 77. a7 Qb3#) 69. Kd2 Qa6 70. Kd1 Ke4 (70... Qxa4+ 71. Ke2 Qc2+ 72. Kf3 Qh2 73. e4+ dxe4+ 74. Ke3 Qb2 75. d5 cxd5 76. c6 d4#) 71. Kc2 Qxa4+ (71... Kxe3 {leads to mate.} 72. a5 Qd3+ 73. Kb2 Kd2 74. a6 Qc2+ 75. Ka1 Kc3 76. a7 Qb2#) 72. Kb2 Kd3 (72... Kxe3 73. Kb1 Kxd4 74. Kb2 Kd3 75. Kb1 Kc3 76. Kc1 Qc2#) 73. e4 Qc2+ (73... Qxd4+ 74. Kb3 Qc3+ 75. Ka2 Kc2 76. exd5 Qb2#) 74. Ka3 Kc4 75. exd5 Qb3#) (64. Rc3 $11) 64... Qa1+ {[%emt 0:37:31]} 0-1

[Event "British Championship 2024"]
[Site "Hull"]
[Date "2024.07.31"]
[Round "4.11"]
[White "Yao, Lan"]
[Black "Willow, Jonah B"]
[Result "1/2-1/2"]
[Annotator "TA"]
[ECO "C02"]
[WhiteElo "2325"]
[BlackElo "2422"]
[PlyCount "179"]
[EventDate "2024.07.31"]
[EventCountry "GBR"]
[SourceTitle "playchess.com"]
[Source "ChessBase"]
[SourceQuality "1"]
[TimeControl "40/5400+30:1800+30"]

{[%evp 12,179,3,-5,0,-14,-28,-62,40,12,36,30,39,39,33,53,47,0,0,0,0,0,23,0,51,0,0,0,22,19,10,0,27,16,71,11,30,13,23,12,15,22,40,36,25,42,41,42,46,24,39,38,32,28,33,32,64,71,63,63,90,82,84,86,102,71,131,123,195,221,206,195,194,196,326,306,295,291,299,236,284,231,222,222,216,197,216,227,210,83,400,75,75,75,75,75,70,67,67,67,67,67,67,67,67,67,67,67,67,67,68,68,68,68,68,68,68,68,68,68,68,68,68,68,68,68,68,68,68,68,68,68,68,68,68,68,68,68,68,68,68,68,68,68,68,68,68,68,68,68,68,68,68,68,68,68,68,68,68,68,68,46,49,8,8,8,8,8,9,16]} 1. e4 {[%emt 0:00:02]} e6 {[%emt 0:01:52]} 2. d4 {[%emt 0:00:19]} d5 {[%emt 0:00:04]} 3. e5 {[%emt 0:00:04]} c5 {[%emt 0:00:13]} 4. c3 {[%emt 0:00:02]} Nc6 {[%emt 0:00:22]} 5. Nf3 {[%emt 0:00:04]} Bd7 {[%emt 0:00:11]} 6. a3 {[%emt 0:00:14]} c4 {[%emt 0:00:05]} 7. Be2 {[%emt 0:01:51]} f6 {[%emt 0:00:16]} 8. Bf4 {[%emt 0:05:21]} Qb6 {[%emt 0:13:52]} 9. Qc2 {[%emt 0:00:57]} O-O-O {[%emt 0:01:43]} (9... g5 $15 10. Be3 g4) 10. Nbd2 $14 {[%emt 0:02:06]} Na5 {[%emt 0:07:58]} 11. h4 {[%emt 0:02:59][%cal Bh2h4,Bh4h5][%mdl 32]} Ne7 {[%emt 0:00:56]} 12. h5 {[%emt 0:02:50]} Be8 {[%emt 0:01:23]} 13. Rb1 {[%emt 0:19:02]} h6 {[%emt 0:06:03]} 14. Qc1 {[%emt 0:07:05][%cal Ob2b3]} g5 {[%emt 0:13:25]} 15. exf6 {[%emt 0:04:01]} gxf4 {[%emt 0:00:28]} 16. fxe7 {[%emt 0:00:02]} Bxe7 {[%emt 0:00:08]} 17. Ne5 {[%emt 0:00:09]} Nc6 {[%emt 0:04:51]} (17... Rf8 $11) 18. Ndf3 {[%emt 0:03:20] Excellent horsemanship.} (18. Ng6 $1 $14 Bxg6 19. hxg6) 18... Rf8 {[%emt 0:04:02]} 19. Qc2 {[%emt 0:05:30]} Rf5 {[%emt 0:01:35]} 20. Nxc6 {[%emt 0:00:13]} Qxc6 {[%emt 0:07:46]} 21. Ne5 {[%emt 0:00:19]} Qc7 {[%emt 0:07:28]} 22. Bg4 {[%emt 0:03:43]} Rf6 {[%emt 0:00:09]} (22... Rxe5+ $1 $11 {remains equal.} 23. dxe5 Qxe5+ 24. Kf1 (24. Qe2 Qxe2+ 25. Kxe2 Bd7 $11) 24... Bf7) 23. Qh7 {[%emt 0:07:14]} (23. O-O $16) 23... Bd6 $11 {[%emt 0:01:55][%csl LRe5,LRh7]} 24. Qxc7+ {[%emt 0:00:21]} Kxc7 {[%emt 0:00:01]} 25. Kd2 {[%emt 0:01:59]} Bxe5 {[%emt 0:01:58]} 26. dxe5 {[%emt 0:00:02]} Rf7 {[%emt 0:00:05]} 27. Bxe6 {[%emt 0:03:52]} Rg7 {[%emt 0:02:14]} 28. Rh4 {[%emt 0:02:28]} Re7 {[%emt 0:00:36]} 29. Bf5 {[%emt 0:08:47]} Rxe5 {[%emt 0:00:03]} 30. Rxf4 {[%emt 0:00:08]} Bxh5 {[%emt 0:00:52] And now ...Re2+ would win.} 31. Rh1 {[%emt 0:05:04]} Rde8 $1 {[%emt 0:03:21]} 32. g4 $36 {[%emt 0:00:32][%cal Of5c2][%mdl 2048] aiming for Bc2! White has some pressure.} (32. Rxh5 $2 Re2+ 33. Kc1 Re1+ 34. Kd2 R8e2#) 32... R8e7 {[%emt 0:03:03]} 33. Bc2 {[%emt 0:04:41]} (33. Rxh5 $2 Re2+ 34. Kc1 Re1+ 35. Kd2 R7e2#) 33... Be8 {[%emt 0:01:06]} 34. Bd1 {[%emt 0:01:50]} (34. Rxh6 Re2+ 35. Kc1 Re1+ 36. Bd1 R7e2 $11) 34... R5e6 {[%emt 0:02:40] Wards off Rf6} 35. Rd4 {[%emt 0:06:51]} Bf7 {[%emt 0:09:15]} 36. f4 {[%emt 0:00:47]} Rb6 {[%emt 0:00:14]} 37. Kc1 {[%emt 0:00:33]} Re3 {[%emt 0:00:13]} 38. Rd2 {[%emt 0:01:38]} Rf6 {[%emt 0:01:35]} (38... Kd7 $142) 39. f5 $1 $16 {[%emt 0:00:12]} Bg8 {[%emt 0:02:58]} (39... Kd8 $16 40. Rdh2 h5) 40. Rdh2 $18 {[%emt 0:00:32]} d4 {[%emt 0:00:38]} 41. cxd4 {[%emt 0:32:38]} (41. Rxh6 $6 Rxh6 42. Rxh6 dxc3 $14) 41... c3 {[%emt 0:30:19]} 42. Rc2 {[%emt 0:00:00]} (42. Rxh6 Rxh6 43. Rxh6 Re1 $11) 42... Rc6 {[%emt 0:00:00]} (42... Bd5 {keeps fighting.} 43. Rh5 (43. Rxc3+ $2 Rxc3+ 44. bxc3 Bxh1 $19) 43... Kd7 (43... Bf7 $2 44. Rhh2 $18) 44. Rxc3 (44. bxc3 Bc4 $16) 44... Re4) 43. Rxc3 {[%emt 0:00:00]} Rexc3+ {[%emt 0:00:00]} 44. bxc3 {[%emt 0:00:00]} Rxc3+ {[%emt 0:00:00][%mdl 4096] Endgame. KRB-KRB} 45. Kd2 {[%emt 0:00:00]} Rxa3 {[%emt 0:00:00]} 46. Rxh6 {[%emt 0:00:00]} Bc4 {[%emt 0:00:00]} 47. Bc2 {[%emt 0:00:00] Prevents Rd3+. g5 is the strong threat.} Rg3 {[%emt 0:00:00]} 48. Rh7+ {[%emt 0:00:00]} Kd6 {[%emt 0:00:00]} 49. Rxb7 {[%emt 0:00:00]} Rxg4 {[%emt 0:00:00] [#]} 50. Kc3 {[%emt 0:00:00]} (50. Rxa7 Rxd4+ 51. Ke3 Rh4 $11) (50. Ke3 $1 $18) 50... Bf1 $2 {[%emt 0:00:00][%mdl 8192] [#]} (50... Bd5 $16 51. Rxa7 Rf4 52. Ra6+ Ke7) 51. f6 $2 {[%emt 0:00:00]} (51. Rxa7 Rg3+ 52. Kd2 (52. Kb4 Rg4 $11) 52... Rg2+ 53. Kd1 Rg4 $11) (51. Ba4 $1 $18 {[%csl Ga4][%cal Rb7d7] and the rest is easy.} Kd5 52. Rd7+ (52. Rxa7 Rg3+ 53. Kb4 Kxd4 $11) 52... Ke4 53. f6 (53. Rxa7 Rg3+ 54. Kb4 Kxd4 $11) 53... Rg3+ 54. Kd2 (54. Kb4 a5+ 55. Kxa5 Rg8 $18)) 51... Rg3+ {[%emt 0:00:00]} 52. Kb4 {[%emt 0:00:00][%cal Of6f7] Strongly threatening f7! White is much more active.} Rf3 {[%emt 0:00:00]} 53. f7 {[%emt 0:00:00]} (53. Rxa7 Rxf6 54. Ba4 Kd5 $14) 53... a5+ {[%emt 0:00:00]} 54. Kxa5 {[%emt 0:00:00]} (54. Ka4 $5 Bc4 $8 55. Bg6 $16 (55. Kxa5 Bxf7 56. Kb4 Rf4 $11)) 54... Bc4 {[%emt 0:00:00] Wards off Bb3} 55. Bg6 {[%emt 0:00:00] Threatens to win with Rb6+.} Rf4 {[%emt 0:00:00]} 56. Kb4 {[%emt 0:02:43]} Bxf7 {[%emt 0:00:00]} 57. Bxf7 {[%emt 0:00:25]} Rxd4+ $14 {[%emt 0:00:00] KRB-KR} 58. Kc3 {[%emt 0:00:02]} Rh4 {[%emt 0:00:00]} 59. Bc4 {[%emt 0:00:10]} Rh1 {[%emt 0:00:00]} 60. Rb5 {[%emt 0:00:09]} Rc1+ {[%emt 0:00:00]} 61. Kd4 {[%emt 0:00:03]} Rd1+ {[%emt 0:00:00]} 62. Bd3 {[%emt 0:00:02]} Kc6 {[%emt 0:00:00][%cal Od1d3]} 63. Rh5 {[%emt 0:00:04]} Kd6 {[%emt 0:00:00]} 64. Rh6+ {[%emt 0:00:04]} Kd7 {[%emt 0:00:00]} 65. Ke4 {[%emt 0:00:34]} Kc7 {[%emt 0:00:00]} 66. Bc4 {[%emt 0:00:46]} Rd6 {[%emt 0:00:00]} 67. Rh5 {[%emt 0:00:06]} Rg6 {[%emt 0:00:00]} 68. Kd4 {[%emt 0:00:17]} Kd6 {[%emt 0:00:00]} 69. Bd3 {[%emt 0:00:09]} Rg1 {[%emt 0:00:00]} 70. Rh6+ {[%emt 0:00:04]} Ke7 {[%emt 0:00:00]} 71. Ke5 {[%emt 0:00:04]} Re1+ {[%emt 0:00:00]} 72. Be4 {[%emt 0:00:03]} Re2 {[%emt 0:00:00]} 73. Rh7+ {[%emt 0:00:04]} Ke8 {[%emt 0:00:00]} 74. Kd5 {[%emt 0:01:05]} Kf8 {[%emt 0:00:00]} 75. Ra7 {[%emt 0:00:04]} Re1 {[%emt 0:00:00]} 76. Bf5 {[%emt 0:01:15]} Re7 {[%emt 0:00:00]} 77. Ra1 {[%emt 0:00:06]} Kf7 {[%emt 0:00:56]} 78. Rf1 {[%emt 0:00:06]} Ra7 {[%emt 0:00:58]} 79. Be6+ {[%emt 0:00:07]} Kg6 {[%emt 0:00:25]} 80. Ke5 {[%emt 0:00:05]} Ra5+ {[%emt 0:00:10]} 81. Bd5 {[%emt 0:00:05]} Kg5 {[%emt 0:00:03]} 82. Rb1 {[%emt 0:00:26]} Kh5 {[%emt 0:02:11]} 83. Rg1 {[%emt 0:02:48]} Rb5 {[%emt 0:00:16]} 84. Ke4 {[%emt 0:00:24]} Kh6 {[%emt 0:00:07]} 85. Rg2 {[%emt 0:00:12]} Ra5 {[%emt 0:00:16]} 86. Be6 {[%emt 0:01:05]} Rg5 {[%emt 0:00:32]} 87. Bg4 {[%emt 0:00:04]} (87. Rh2+ Kg6 88. Rf2 Kh7 $18) 87... Kg6 {[%emt 0:03:15] The position is equal.} 88. Kf4 {[%emt 0:00:13][%cal Og4h5] Intending Bh5+! and mate.} Ra5 {[%emt 0:01:38]} 89. Bf5+ {[%emt 0:00:07]} Kf6 {[%emt 0:00:38]} 90. Rg6+ {[%emt 0:00:05] Black defended with fortune.   Weighted Error Value: White=0.17 (very precise) /Black=0.28 (precise) .  Loses game:     	---       	Black=1      Missed win:     	White=1     	---        Mistake:       	White=3     	Black=6      Inaccurate:     	White=3     	Black=3      OK:         	White=46    	Black=31     Best:        	White=7     	Black=7      Strong:       	White=1     	Black=1} 1/2-1/2

[Event "British Championship 2024"]
[Site "Hull"]
[Date "2024.07.31"]
[Round "4.12"]
[White "Pert, Richard G"]
[Black "Pein, Malcolm"]
[Result "1/2-1/2"]
[Annotator "TA"]
[ECO "D87"]
[WhiteElo "2415"]
[BlackElo "2274"]
[PlyCount "81"]
[EventDate "2024.07.31"]
[EventCountry "GBR"]
[SourceTitle "playchess.com"]
[Source "ChessBase"]
[SourceQuality "1"]
[TimeControl "40/5400+30:1800+30"]

{[%evp 24,81,49,36,45,16,36,15,29,44,41,8,19,6,12,0,19,31,132,125,183,156,184,150,160,192,245,261,250,257,262,269,268,237,241,227,217,135,131,85,78,76,78,76,68,0,0,0,22,8,12,0,0,0,0,0,0,0,0,0]} 1. d4 {[%emt 0:00:10]} Nf6 {[%emt 0:00:30]} 2. c4 {[%emt 0:00:17]} g6 {[%emt 0:02:18]} 3. Nc3 {[%emt 0:00:25]} d5 {[%emt 0:00:43]} 4. cxd5 {[%emt 0:00:12]} Nxd5 {[%emt 0:00:04]} 5. e4 {[%emt 0:00:11]} Nxc3 {[%emt 0:00:04]} 6. bxc3 {[%emt 0:00:08]} Bg7 {[%emt 0:00:04]} 7. Bc4 {[%emt 0:00:26]} c5 {[%emt 0:03:26]} 8. Ne2 {[%emt 0:00:52]} Nc6 {[%emt 0:00:11]} 9. Be3 {[%emt 0:00:34]} O-O {[%emt 0:00:11]} 10. O-O {[%emt 0:00:32]} Qc7 {[%emt 0:02:28]} 11. Rc1 {[%emt 0:02:14]} Rd8 {[%emt 0:00:06]} 12. Bf4 {[%emt 0:03:41]} Qd7 {[%emt 0:04:53]} 13. dxc5 {[%emt 0:09:00]} Qe8 {[%emt 0:20:29]} 14. Bd5 {[%emt 0:01:46]} Bd7 {[%emt 0:03:33]} 15. Qd3 {[%emt 0:04:13]} e6 {[%emt 0:21:10]} 16. Bb3 {[%emt 0:01:29]} Na5 {[%emt 0:02:26]} 17. Bd6 {[%emt 0:07:49]} b6 {[%emt 0:05:26]} 18. Qe3 {[%emt 0:04:42]} Ba4 {[%emt 0:07:34]} 19. Rb1 {[%emt 0:09:10]} Bxb3 {[%emt 0:06:58]} 20. axb3 {[%emt 0:00:19][%cal Ba2b3,Bb3b4,Bb4b5][%mdl 32]} Nb7 {[%emt 0:00:04]} (20... Qc6 $14) 21. Bc7 $16 {[%emt 0:04:26]} Rdc8 {[%emt 0:00:06]} (21... Rd7 $16 22. cxb6 Bf8) 22. cxb6 $18 {[%emt 0:00:45]} Qc6 {[%emt 0:00:29]} 23. c4 {[%emt 0:16:53][%cal Bc3c4,Bc4c5,Bc5b6][%mdl 32]} Nc5 {[%emt 0:09:07]} 24. b4 {[%emt 0:12:13]} (24. Nd4 $6 Bxd4 25. Qxd4 axb6 $16) 24... Nxe4 {[%emt 0:02:17] [#]} (24... Nd7 $142) 25. c5 $1 {[%emt 0:03:05] b5 would now be deadly.} ({Not} 25. bxa7 Qxc7 (25... Rxc7 26. b5 $14) 26. Qxe4 Qxc4 27. Qxc4 Rxc4 $11) (25. b5 Qb7 $16) 25... axb6 {[%emt 0:00:28]} 26. cxb6 {[%emt 0:00:05]} Nf6 {[%emt 0:00:41]} 27. b5 {[%emt 0:05:02]} Qb7 {[%emt 0:00:05]} 28. Qf3 {[%emt 0:00:20]} Nd5 {[%emt 0:01:52]} 29. Nf4 {[%emt 0:00:17]} Bd4 {[%emt 0:02:02]} 30. Nxd5 {[%emt 0:04:03]} exd5 {[%emt 0:00:02]} 31. Rbd1 {[%emt 0:02:21]} (31. Rfd1 $142 Bxb6 32. Bg3 (32. Qxd5 $2 {is the wrong capture.} Qxc7 33. h3 Qf4 $19)) 31... Bxb6 $16 {[%emt 0:01:18] [#]} 32. Be5 {[%emt 0:02:49][%cal Of3f6] Intending Qf6! and mate. White is more active.} (32. Qxd5 $2 {too greedy.} Qxc7 (32... Rxc7 $2 33. Qxb7 Rxb7 34. Rd2 $19) 33. Rde1 Qc5 34. Qxc5 Rxc5 $19) 32... Qe7 {[%emt 0:00:47]} 33. Rxd5 {[%emt 0:01:05]} Ra2 {[%emt 0:00:46][%cal Oa2f2]} 34. Bd4 {[%emt 0:02:19]} (34. Qf4 $14) 34... Bxd4 $11 {[%emt 0:00:24] The position is equal.} 35. Rxd4 {[%emt 0:00:01]} Rcc2 {[%emt 0:01:42]} 36. g3 {[%emt 0:01:07]} Rab2 {[%emt 0:00:57]} 37. Rd5 {[%emt 0:00:36]} Kg7 {[%emt 0:01:26]} 38. h4 {[%emt 0:03:53]} h5 {[%emt 0:00:30]} 39. Qf4 {[%emt 0:00:00]} Qf6 {[%emt 0:00:26]} 40. Qxf6+ {[%emt 0:00:00]} Kxf6 {[%emt 0:00:03]} 41. Kg2 {[%emt 0:30:52] Black defended with fortune.   Weighted Error Value: White=0.16 (very precise) /Black=0.14 (very precise) .  Mistake:       	White=2     	Black=3      Inaccurate:     	White=3     	---        OK:         	White=7     	Black=14     Best:        	White=2     	Black=1      Strong:       	White=1     	---} 1/2-1/2

[Event "British Championship 2024"]
[Site "Hull"]
[Date "2024.07.31"]
[Round "4.13"]
[White "Richardson, John R"]
[Black "Lutsko, Artem"]
[Result "1/2-1/2"]
[Annotator "TA"]
[ECO "E46"]
[WhiteElo "2299"]
[BlackElo "2414"]
[PlyCount "82"]
[EventDate "2024.07.31"]
[EventCountry "GBR"]
[SourceTitle "playchess.com"]
[Source "ChessBase"]
[SourceQuality "1"]
[TimeControl "40/5400+30:1800+30"]

{[%evp 16,82,-3,-21,-9,-17,-13,-51,-29,0,8,0,43,47,71,50,36,14,67,60,117,112,116,92,21,10,79,26,34,22,20,18,23,45,32,60,55,0,0,0,0,0,0,0,0,0,0,0,0,-13,0,0,0,0,0,0,0,0,0,0,0,0,0,0,0,0,0,0,0]} 1. d4 {[%emt 0:00:02]} Nf6 {[%emt 0:00:10]} 2. c4 {[%emt 0:00:04]} e6 {[%emt 0:00:07]} 3. Nc3 {[%emt 0:00:05]} Bb4 {[%emt 0:00:09]} 4. e3 {[%emt 0:00:05]} O-O {[%emt 0:00:09]} 5. Nge2 {[%emt 0:00:03]} d5 {[%emt 0:00:32]} 6. a3 {[%emt 0:01:39]} Be7 {[%emt 0:00:18]} 7. Ng3 {[%emt 0:00:11]} c5 {[%emt 0:06:12]} 8. cxd5 {[%emt 0:02:11]} cxd4 {[%emt 0:12:02]} 9. exd4 {[%emt 0:00:26]} Nxd5 {[%emt 0:00:31]} 10. Bd3 {[%emt 0:06:08][%cal Bf1d3,Bd3c2,Bc2b3,Bb3a2][%mdl 32]} Nc6 {[%emt 0:02:10]} 11. Bc2 {[%emt 0:03:27]} Nxc3 {[%emt 0:24:27] Black is slightly better.} 12. bxc3 {[%emt 0:00:02]} Bd7 {[%emt 0:00:27]} 13. Qd3 {[%emt 0:11:54][%csl Gc2][%cal Rd3h7]} g6 {[%emt 0:00:04][%cal Bg7g6,Bg6g5][%mdl 32] [#]} 14. h4 $1 {[%emt 0:02:37] Black must now prevent h5.} f5 {[%emt 0:14:42][%cal Bf7f5,Bf5f4][%mdl 32]} 15. h5 {[%emt 0:00:31] hxg6 would now be deadly.} g5 {[%emt 0:00:25]} 16. Bb3 {[%emt 0:02:21]} Na5 {[%emt 0:04:06]} ({Black should try} 16... Kh8 $11) 17. Ba2 $14 {[%emt 0:00:18]} Kh8 {[%emt 0:00:24]} ({Black should play} 17... Rf7 $14) 18. O-O $16 {[%emt 0:01:04]} Qe8 {[%emt 0:12:24]} 19. Re1 {[%emt 0:07:50][%cal Od4d5] Threatens to win with d5!} f4 {[%emt 0:00:04]} 20. Nf1 {[%emt 0:01:50]} Bf6 {[%emt 0:01:58]} (20... Qxh5 $11 {keeps the balance.} 21. Bxe6 Rad8) 21. h6 {[%emt 0:06:46] White is more active.} (21. Qd1 $16) 21... Qh5 $11 {[%emt 0:04:06]} 22. Bxe6 {[%emt 0:01:41]} Rae8 {[%emt 0:00:21]} 23. Qf5 {[%emt 0:08:47] Some like it hot} Rxe6 {[%emt 0:03:28]} (23... Nb3 {is more complex.} 24. Rb1 Qxh6 25. Qd5 Bxe6 26. Rxe6 Rxe6 27. Qxe6 Nxc1 28. Rxc1 Qg6) 24. Rxe6 {[%emt 0:00:06]} Bxe6 {[%emt 0:00:05]} 25. Qxe6 {[%emt 0:00:27]} Qxh6 {[%emt 0:00:02]} 26. Rb1 {[%emt 0:08:29]} (26. a4 $14) 26... Qg6 {[%emt 0:03:42] The position is equal.} 27. Rb5 {[%emt 0:00:46]} b6 {[%emt 0:00:01]} 28. Rf5 {[%emt 0:07:49]} Kg7 {[%emt 0:00:01]} 29. Rd5 {[%emt 0:00:12]} Rf7 {[%emt 0:00:38]} 30. g3 {[%emt 0:08:05]} Nb3 {[%emt 0:03:47]} 31. Bb2 {[%emt 0:01:18]} h5 {[%emt 0:05:14]} ({Much worse is} 31... fxg3 $6 32. Nxg3 h6 33. Rf5 $16) (31... Re7 $5 32. Rd7 $8 Rxd7 33. Qxd7+ Qf7 $11) 32. Rd6 {[%emt 0:05:10]} Na5 {[%emt 0:00:20]} 33. Bc1 {[%emt 0:00:12]} Nb7 {[%emt 0:01:30]} 34. Rd7 {[%emt 0:01:16]} Nd8 {[%emt 0:00:01]} 35. Qd5 {[%emt 0:01:09]} Qb1 {[%emt 0:01:07]} 36. Rxd8 {[%emt 0:02:13]} Bxd8 {[%emt 0:00:18]} 37. Qxd8 {[%emt 0:00:09]} Qxc1 {[%emt 0:00:10]} 38. Qxg5+ {[%emt 0:00:05] KQR-KQN} Kf8 {[%emt 0:00:18]} 39. Qd8+ {[%emt 0:00:56]} Kg7 {[%emt 0:00:04] [#] ...fxg3 is the strong threat.} 40. Qg5+ {[%emt 0:00:02]} Kf8 {[%emt 0:03:22]} 41. Qd8+ {[%emt 0:31:59]} Kg7 {[%emt 0:30:06] Weighted Error Value: White=0.08 (flawless) /Black=0.10 (very precise) .  Mistake:       	White=2     	Black=3      Inaccurate:     	White=1     	Black=1      OK:         	White=17    	Black=17     Best:        	White=3     	Black=1} 1/2-1/2